bitfinex/quotes_ETHUSD_20240729
["timestamp","ask_amount","ask_price","bid_price","bid_amount"]
[1722259737518,0.012,3372.0,3371.9,6.54065273]
[1722259738162,0.012,3372.0,3371.9,11.84383273]
[1722259738368,3.82477858,3373.9,3372.6,2.96502]
[1722259738369,2.2805,3373.9,3372.6,2.96502]
[1722259738541,2.2805,3373.9,3372.7,0.05928261]
[1722259738736,2.2805,3373.9,3372.8,0.05928263]
[1722259738737,0.03419912,3373.8,3372.8,0.05928263]
[1722259738933,0.03419912,3373.8,3372.8,3.58436289]
[1722259739126,2.2805,3373.9,3372.8,3.58436289]
[1722259739341,2.4373,3374.3,3373.0,2.578]
[1722259739545,2.4373,3374.3,3373.1,0.05927609]
[1722259739727,0.03351355,3374.2,3373.1,0.67550672]
[1722259739930,0.08681545,3374.2,3373.0,2.578]
[1722259740227,3.08681545,3374.2,3372.6,5.0175]
[1722259740429,3.08681545,3374.2,3371.8,5.92576]
[1722259740430,5.264,3374.1,3372.2,13.8075]
[1722259740640,3.05146798,3374.0,3372.3,1.05354163]
[1722259740833,3.0,3373.9,3372.4,2.96518]
[1722259741156,0.03415305,3373.8,3372.5,0.05928338]
[1722259741528,0.03415305,3373.8,3372.6,5.543]
[1722259741734,0.03415305,3373.8,3372.7,0.05928339]
[1722259742047,0.03415305,3373.8,3372.8,0.0592824]
[1722259742466,0.03415305,3373.8,3371.9,5.75018327]
[1722259742467,0.03415305,3373.8,3372.2,12.3075]
[1722259742653,2.3698,3373.7,3372.2,9.7295]
[1722259742855,0.0873319,3373.6,3372.2,9.7295]
[1722259743399,0.03403,3373.6,3372.2,12.69492]
[1722259743573,0.03403,3373.6,3372.3,1.567251]
[1722259743903,3.03403,3373.6,3372.2,9.7295]
[1722259744202,3.0873319,3373.6,3372.2,9.7295]
[1722259744501,0.0873319,3373.6,3372.2,9.7295]
[1722259744687,3.0873319,3373.6,3372.2,9.7295]
[1722259744876,3.0873319,3373.6,3371.9,5.16581327]
[1722259745202,0.0873319,3373.6,3372.2,2.96542]
[1722259745409,3.0,3373.5,3372.2,2.96542]
[1722259745612,0.03390695,3373.4,3372.1,2.96545]
[1722259745816,0.03390695,3373.4,3372.3,3.02462197]
[1722259746038,0.03390695,3373.4,3372.4,3.8220472]
[1722259746168,0.03390695,3373.4,3372.5,0.05928757]
[1722259746625,0.03391149,3373.3,3372.5,0.05928757]
[1722259746837,0.03391149,3373.3,3372.4,0.8568072]
[1722259746970,2.3698,3373.7,3372.4,0.8568072]
[1722259747338,0.03400686,3373.6,3372.4,0.8568072]
[1722259747470,0.08730876,3373.6,3372.4,0.8568072]
[1722259747823,0.08730876,3373.6,3372.2,2.578]
[1722259748030,0.08730876,3373.6,3371.8,15.3045]
[1722259748031,2.3552,3373.4,3371.8,15.3045]
[1722259748248,2.96434,3373.5,3371.8,15.3045]
[1722259748249,2.3552,3373.2,3371.8,15.3045]
[1722259748530,2.3552,3372.9,3371.8,7.29]
[1722259748832,2.3552,3372.9,3371.4,7.29]
[1722259748833,0.0533019,3372.8,3371.4,7.29]
[1722259749038,0.08761961,3372.8,3371.4,8.54288]
[1722259749889,2.3219,3372.7,3371.4,8.54288]
[1722259750212,2.3219,3372.7,3372.0,0.01]
[1722259750393,0.03433991,3372.6,3372.0,0.01]
[1722259750579,2.3219,3372.7,3372.0,0.01]
[1722259750783,0.03265439,3372.6,3372.0,0.01]
[1722259750996,2.3219,3372.7,3372.0,0.01]
[1722259751203,0.03274169,3372.5,3372.0,0.01]
[1722259751424,0.03274169,3372.5,3371.4,11.12088]
[1722259751918,0.0533019,3372.6,3371.4,3.83088]
[1722259752094,0.0533019,3372.6,3371.4,2.578]
[1722259752315,0.0329516,3372.5,3371.4,2.578]
[1722259752530,0.0329516,3372.5,3371.0,9.868]
[1722259752681,2.4412,3372.4,3371.0,2.578]
[1722259752888,0.0533019,3372.3,3371.0,2.578]
[1722259753080,0.08613041,3372.3,3371.0,2.578]
[1722259753284,3.08613041,3372.3,3371.0,2.578]
[1722259753522,0.0533019,3372.2,3371.0,2.578]
[1722259753821,3.08613041,3372.3,3371.0,2.578]
[1722259753980,0.03269131,3372.1,3371.1,0.851121]
[1722259754455,0.03269131,3372.1,3371.0,2.578]
[1722259755521,0.03269131,3372.1,3371.0,5.54446]
[1722259756139,0.03269131,3372.1,3371.0,2.578]
[1722259756431,3.0533019,3372.3,3371.0,2.578]
[1722259756631,0.0313482,3372.0,3371.1,3.22418]
[1722259756832,3.0,3372.2,3371.1,3.22418]
[1722259757075,0.0533019,3372.3,3371.1,3.22418]
[1722259757220,0.03140976,3372.1,3371.1,3.22418]
[1722259757570,0.0533019,3372.3,3371.2,2.96628]
[1722259757571,3.0533019,3372.3,3371.2,2.96628]
[1722259757770,0.0533019,3372.3,3371.3,0.7301552]
[1722259757979,0.03147132,3372.2,3371.3,3.75566587]
[1722259758281,2.4412,3372.4,3371.4,2.578]
[1722259758422,2.4412,3372.4,3371.5,3.65864459]
[1722259758780,2.4412,3372.4,3371.5,0.69266459]
[1722259758918,2.4412,3372.4,3371.5,0.059305]
[1722259759118,0.03039959,3372.3,3371.5,0.059305]
[1722259759416,2.4412,3372.4,3371.5,0.059305]
[1722259759721,0.0303535,3372.2,3371.5,3.025335]
[1722259759943,2.4412,3372.4,3371.6,0.8569545]
[1722259759944,0.03041505,3372.3,3371.6,0.8569545]
[1722259760118,2.4412,3372.4,3371.7,0.05930409]
[1722259760452,0.03041505,3372.3,3371.7,0.05930409]
[1722259761625,0.03041505,3372.3,3371.6,0.8569545]
[1722259762364,0.03041505,3372.3,3371.4,2.578]
[1722259762727,0.03041505,3372.3,3371.5,0.05930413]
[1722259762926,2.4412,3372.4,3371.5,0.05930413]
[1722259763127,0.02868273,3372.2,3371.5,0.05930413]
[1722259763327,0.02765367,3372.3,3371.5,0.05930413]
[1722259763536,2.4412,3372.4,3371.6,1.58596241]
[1722259763740,2.4412,3372.4,3371.7,0.05930412]
[1722259765031,0.02850858,3372.3,3371.6,1.58596241]
[1722259766069,2.4412,3372.4,3371.7,0.05930417]
[1722259766643,2.4412,3372.4,3371.8,0.05930416]
[1722259766833,2.4412,3372.4,3371.8,0.75366482]
[1722259767651,3.008,3373.0,3371.8,0.75366482]
[1722259767942,5.4047,3372.9,3371.8,0.75366482]
[1722259768354,3.0,3372.8,3371.8,0.75366482]
[1722259768540,2.4047,3372.9,3371.8,3.71938482]
[1722259768740,2.4047,3372.9,3371.9,3.79279572]
[1722259769058,0.008,3373.0,3372.2,2.578]
[1722259769377,0.008,3373.0,3372.3,0.05928955]
[1722259769771,0.03012907,3372.9,3372.3,0.05928955]
[1722259769980,0.03012907,3372.9,3372.2,2.578]
[1722259770136,0.008,3373.0,3372.2,0.58860157]
[1722259770341,0.008,3373.0,3371.9,0.82711572]
[1722259770717,0.03015908,3372.9,3371.9,0.82711572]
[1722259770844,0.03015908,3372.9,3371.9,3.79278572]
[1722259771053,2.4040123,3373.2,3371.9,0.82711572]
[1722259771462,0.02818131,3373.1,3372.0,0.05929684]
[1722259771743,0.02818131,3373.1,3371.9,0.82711572]
[1722259772244,0.02818131,3373.1,3372.0,0.05929681]
[1722259773459,0.01,3373.0,3372.0,0.05929681]
[1722259773663,0.04027809,3373.0,3372.0,0.05929681]
[1722259773973,0.04027809,3373.0,3372.1,0.64300625]
[1722259774172,0.04027809,3373.0,3372.2,0.0592963]
[1722259777513,0.04027809,3373.0,3372.1,0.64300625]
[1722259777807,1.58211086,3373.0,3371.9,0.82711572]
[1722259778019,0.04027809,3373.0,3372.0,1.31760157]
[1722259778312,1.58211086,3373.0,3372.0,1.31760157]
[1722259778486,4.58211086,3373.0,3372.0,1.31760157]
[1722259778890,1.58211086,3373.0,3372.0,1.31760157]
[1722259779211,0.04027809,3373.0,3372.0,1.31760157]
[1722259779419,2.4569,3372.9,3372.0,1.26760157]
[1722259779778,0.03022907,3372.8,3372.0,1.26760157]
[1722259780611,2.2566,3372.7,3371.8,7.29]
[1722259780785,2.2566,3372.7,3371.4,2.578]
[1722259780786,5.2566,3372.7,3371.4,2.578]
[1722259780987,2.2566,3372.7,3371.4,2.578]
[1722259781195,5.2566,3372.7,3371.4,2.578]
[1722259781400,5.2566,3372.7,3371.6,2.96591]
[1722259781587,2.2566,3372.7,3371.7,1.16532113]
[1722259781792,2.2566,3372.7,3371.8,0.05930134]
[1722259782591,2.2566,3372.7,3371.7,1.16532113]
[1722259782592,2.2566,3372.7,3371.9,0.55]
[1722259783095,2.2566,3372.7,3371.8,0.55]
[1722259783290,2.2566,3372.7,3371.9,0.41312111]
[1722259783739,2.2566,3372.7,3371.8,0.55]
[1722259785432,3.79943697,3372.7,3371.7,0.61532113]
[1722259785739,3.80041826,3372.7,3371.7,0.61532113]
[1722259786119,2.2566,3372.7,3371.7,0.61532113]
[1722259786285,2.2566,3372.7,3371.8,0.35813411]
[1722259786616,2.2566,3372.7,3371.9,0.57460367]
[1722259787802,2.2566,3372.7,3371.9,3.54028367]
[1722259788317,2.2566,3372.7,3371.9,0.57460367]
[1722259788501,3.0,3372.9,3371.9,0.57460367]
[1722259788502,4.54381826,3372.9,3371.9,0.57460367]
[1722259788705,1.55381826,3373.0,3372.0,0.94893789]
[1722259788880,4.54569467,3373.0,3372.1,0.57457537]
[1722259789081,4.54569467,3373.0,3372.2,2.96542]
[1722259789283,4.54569467,3373.0,3372.3,1.32002137]
[1722259789518,4.54569467,3373.0,3372.3,0.77002137]
[1722259790178,3.94369467,3373.1,3372.3,0.77002137]
[1722259790385,3.94369467,3373.1,3372.3,0.74544633]
[1722259790587,1.54569467,3373.0,3372.1,0.55]
[1722259790887,2.398,3373.1,3372.1,0.55]
[1722259790888,3.94369467,3373.1,3372.1,0.55]
[1722259791618,1.54569467,3373.0,3372.1,0.55]
[1722259791810,1.54569467,3373.0,3372.2,0.44645979]
[1722259792030,1.55641033,3373.0,3372.2,0.44645979]
[1722259792234,0.01,3373.0,3372.2,0.44645979]
[1722259792547,1.55641033,3373.0,3372.2,0.44645979]
[1722259792853,1.55659998,3373.0,3372.2,0.44645979]
[1722259793142,0.01,3373.0,3372.3,0.19453977]
[1722259794345,1.55659998,3373.0,3372.3,0.19453977]
[1722259795354,2.398,3373.1,3372.3,0.19453977]
[1722259795511,1.54650095,3373.0,3372.3,0.19453977]
[1722259795736,1.54650095,3373.0,3372.2,0.44645979]
[1722259796019,1.54650095,3372.8,3372.1,0.55]
[1722259796439,1.54650095,3372.9,3372.1,0.55]
[1722259796824,1.54650095,3372.8,3372.1,0.55]
[1722259797039,1.54650095,3372.9,3372.2,0.14989379]
[1722259797349,1.54650095,3372.9,3372.1,0.55]
[1722259798113,1.54650095,3373.0,3372.1,3.51551]
[1722259798347,1.55850095,3373.0,3372.1,3.51551]
[1722259798512,1.55850095,3373.0,3372.2,0.74301279]
[1722259798716,1.55850095,3373.0,3372.4,2.2796]
[1722259798918,1.55850095,3373.0,3372.5,0.02457217]
[1722259799111,0.012,3373.0,3372.5,0.02457217]
[1722259800864,0.012,3373.0,3372.5,2.98971217]
[1722259801051,0.012,3373.0,3372.6,1.37345922]
[1722259801213,0.012,3373.0,3372.7,0.02455405]
[1722259801420,0.012,3373.0,3372.9,2.9648]
[1722259801739,0.012,3373.0,3372.9,6.01462734]
[1722259802162,0.012,3373.0,3372.9,8.9549]
[1722259802383,0.012,3373.0,3372.9,11.904681]
[1722259802532,1.54788835,3374.2,3373.4,2.96433]
[1722259802738,1.54788835,3374.6,3373.8,2.578]
[1722259803043,1.54788835,3374.9,3374.3,2.578]
[1722259803285,1.54788835,3374.9,3373.7,2.463]
[1722259803415,1.54788835,3374.9,3372.9,10.31997493]
[1722259803416,2.9635,3374.4,3372.7,2.463]
[1722259803615,3.93778835,3374.6,3372.4,2.96]
[1722259803616,3.93288835,3374.2,3372.4,2.96]
[1722259803854,1.5464791,3373.9,3372.5,3.02455262]
[1722259804062,1.54647359,3373.9,3372.8,2.96488]
[1722259804240,0.07409834,3373.8,3372.6,3.17645526]
[1722259804601,1.69665495,3373.7,3372.6,2.578]
[1722259804938,2.3474,3373.4,3371.8,2.96569]
[1722259805137,2.3474,3373.4,3371.4,1.54768338]
[1722259805138,1.54647359,3373.2,3371.4,1.54768338]
[1722259805331,1.54647359,3372.2,3371.1,1.02656628]
[1722259805632,0.15009655,3372.1,3371.1,1.02656628]
[1722259805832,1.69657014,3372.1,3371.1,1.02656628]
[1722259806037,1.77070978,3372.0,3371.1,1.02656628]
[1722259806261,1.25144463,3371.9,3371.1,1.02656628]
[1722259806475,1.02720364,3371.8,3371.2,0.02464476]
[1722259806676,0.07414838,3372.0,3371.2,0.02464476]
[1722259806846,1.02715687,3371.9,3371.2,0.02464476]
[1722259807059,1.02715687,3371.8,3371.2,0.02464476]
[1722259807263,4.02715687,3371.8,3371.1,1.02656628]
[1722259807461,4.02715687,3371.8,3370.7,2.578]
[1722259807462,1.02715687,3371.7,3370.7,2.578]
[1722259808683,1.02715687,3371.7,3370.4,0.1493755]
[1722259809485,4.02715687,3371.7,3370.4,0.1493755]
[1722259809645,1.10130844,3371.6,3370.5,0.51877755]
[1722259809845,0.07415159,3371.7,3370.5,0.51877755]
[1722259810045,1.02726494,3371.6,3370.5,0.51877755]
[1722259810282,0.07415159,3371.7,3370.5,0.51877755]
[1722259810580,1.54361948,3371.9,3370.6,0.57466204]
[1722259810827,1.02725329,3371.8,3370.7,2.578]
[1722259810946,0.01,3372.0,3370.8,0.57464432]
[1722259811142,1.02715192,3371.9,3370.7,2.578]
[1722259811472,1.02715566,3371.8,3370.5,0.51877755]
[1722259811789,1.10139876,3371.7,3370.5,0.51877755]
[1722259811946,1.0272436,3371.7,3370.7,2.578]
[1722259812286,0.01,3372.0,3370.8,0.57464877]
[1722259812287,3.01,3372.0,3370.8,0.57464877]
[1722259812461,0.01,3372.0,3370.9,0.31526488]
[1722259812662,0.01,3372.0,3371.0,0.02464836]
[1722259812858,0.01,3372.0,3370.9,0.31526488]
[1722259812859,1.02718612,3371.9,3370.9,0.31526488]
[1722259813084,0.01,3372.0,3370.9,0.31526488]
[1722259813085,1.02722136,3371.8,3370.9,0.31526488]
[1722259813259,3.08414595,3372.0,3370.9,0.31526488]
[1722259813463,0.08414595,3372.0,3370.7,2.578]
[1722259813665,0.08414595,3372.0,3370.5,0.51877755]
[1722259813666,1.02721462,3371.9,3370.5,0.51877755]
[1722259813984,1.02721462,3371.9,3370.6,0.55]
[1722259813985,1.10145029,3371.8,3370.6,0.55]
[1722259814281,1.10145029,3371.7,3370.6,0.55]
[1722259814486,0.07415171,3371.7,3370.6,0.55]
[1722259814645,0.07415171,3371.7,3370.5,0.51877755]
[1722259814982,1.02730619,3371.6,3370.3,2.578]
[1722259815183,2.96583,3371.8,3370.3,2.578]
[1722259815184,0.07415856,3371.5,3370.3,2.578]
[1722259815406,2.34985856,3371.5,3370.0,3.21659091]
[1722259815613,1.02744854,3371.4,3370.0,3.21659091]
[1722259815890,0.074161,3371.3,3370.0,3.21659091]
[1722259816391,2.97563,3372.0,3370.7,2.578]
[1722259816392,0.07414968,3371.9,3370.7,2.578]
[1722259816550,0.07414968,3371.9,3370.8,0.57465549]
[1722259816954,0.07414968,3371.9,3370.8,0.02465549]
[1722259817155,1.02725855,3371.8,3370.5,0.55]
[1722259817456,3.0,3371.9,3370.6,0.02466669]
[1722259817675,0.01,3372.0,3370.7,2.578]
[1722259817875,3.01,3372.0,3371.1,2.578]
[1722259818194,0.01,3372.0,3370.8,0.31526667]
[1722259818419,3.0,3371.9,3370.8,0.31526667]
[1722259818592,0.01,3372.0,3371.0,2.96646]
[1722259818817,0.01,3372.0,3371.1,0.02464461]
[1722259818953,0.01,3372.0,3371.1,0.02464514]
[1722259819456,0.01,3372.0,3370.9,0.55]
[1722259819717,0.01,3372.0,3370.9,1.18994785]
[1722259820354,0.01,3372.0,3370.9,0.61530267]
[1722259820664,0.08414862,3372.0,3370.8,0.31526667]
[1722259820861,0.08414862,3372.0,3370.5,2.96685]
[1722259821059,0.08414862,3372.0,3370.6,0.55]
[1722259821389,1.02722544,3371.9,3370.4,0.1493755]
[1722259821548,3.38148269,3371.8,3370.4,0.1493755]
[1722259821755,1.10138263,3371.7,3370.5,0.27273755]
[1722259822093,1.02732672,3371.6,3370.5,0.27273755]
[1722259822307,3.07415719,3371.7,3370.4,0.1493755]
[1722259822308,0.07415728,3371.5,3370.4,0.1493755]
[1722259823301,0.07415728,3371.5,3370.5,0.02468512]
[1722259823476,3.0,3371.7,3370.5,0.02468512]
[1722259823666,0.07415656,3371.7,3370.6,3.28092406]
[1722259823867,3.01,3372.0,3370.6,3.28092406]
[1722259823868,0.01,3372.0,3370.7,3.54133878]
[1722259824120,0.01,3372.0,3370.8,0.02465238]
[1722259824121,3.0,3371.9,3370.8,0.02465238]
[1722259824273,0.01,3372.0,3370.9,0.64335864]
[1722259824469,0.01,3372.0,3371.0,0.02465229]
[1722259825508,0.07414766,3371.9,3370.6,0.31410406]
[1722259826074,0.07414766,3371.9,3370.7,0.55]
[1722259826404,0.07414766,3371.9,3370.7,0.94804696]
[1722259826566,1.02729597,3371.8,3370.7,0.94804696]
[1722259826767,0.07415099,3371.7,3370.7,0.94804696]
[1722259827112,0.07415101,3372.0,3370.8,0.02466048]
[1722259827279,1.02726653,3371.9,3370.8,0.02466048]
[1722259827484,1.10142062,3371.8,3370.4,0.1493755]
[1722259827670,0.07415653,3371.7,3370.4,0.1493755]
[1722259828005,0.07415653,3371.7,3370.5,0.55]
[1722259828305,3.07415653,3371.7,3370.5,0.55]
[1722259828872,3.07415658,3371.6,3370.5,0.55]
[1722259829107,0.07415658,3371.6,3370.5,0.55]
[1722259829487,1.02737554,3371.5,3370.4,0.1493755]
[1722259829694,3.47024255,3371.4,3370.4,0.1493755]
[1722259830019,2.44286499,3371.4,3370.4,0.1493755]
[1722259830379,1.02748669,3371.3,3370.4,0.1493755]
[1722259830581,5.40904499,3371.4,3370.4,0.1493755]
[1722259830582,2.96639,3371.1,3370.4,0.1493755]
[1722259830814,1.10165871,3371.0,3370.4,0.1493755]
[1722259830998,1.02748669,3370.9,3370.4,0.1493755]
[1722259831199,2.413,3370.5,3370.4,0.1493755]
[1722259831419,6.40739669,3370.5,3370.4,0.1493755]
[1722259831628,9.40765542,3370.5,3370.4,0.1493755]
[1722259831823,2.96727,3370.1,3370.0,0.25659091]
[1722259832197,4.06937411,3370.1,3370.0,0.25659091]
[1722259832399,7.06937411,3370.1,3370.0,0.25659091]
[1722259832600,10.03664411,3370.1,3370.0,0.25659091]
[1722259832797,7.06937411,3370.1,3370.0,0.25659091]
[1722259833384,6.40740411,3370.1,3369.0,4.17877016]
[1722259833621,2.96777,3369.6,3369.0,4.17877016]
[1722259833790,4.1021134,3369.5,3369.0,4.17877016]
[1722259834155,1.02790585,3369.4,3369.0,4.16877016]
[1722259834348,1.02790585,3369.4,3368.2,0.2650974]
[1722259834349,2.9684,3368.9,3368.2,0.2650974]
[1722259834486,0.07422159,3368.8,3368.2,0.2650974]
[1722259834798,1.02828162,3368.8,3368.3,0.02482038]
[1722259834999,1.02828162,3368.8,3368.2,0.23991778]
[1722259835305,3.07421076,3369.2,3368.2,0.08991778]
[1722259835506,0.07421076,3369.2,3368.2,0.08991778]
[1722259835818,3.0,3369.4,3368.2,3.05877778]
[1722259836130,2.3053,3370.5,3368.8,2.4293]
[1722259836328,1.0277462,3370.4,3369.1,2.96812]
[1722259836527,0.008,3370.0,3369.2,4.009]
[1722259836687,0.008,3370.0,3369.3,2.96794]
[1722259836887,0.008,3370.0,3369.4,0.55]
[1722259837083,0.008,3370.0,3369.8,2.3642]
[1722259837333,0.008,3370.0,3369.9,0.55]
[1722259838390,0.008,3370.0,3369.5,0.4855812]
[1722259839027,0.008,3370.0,3369.1,2.96814]
[1722259839222,0.008,3370.0,3368.9,2.96828]
[1722259839524,0.008,3370.0,3369.0,3.0]
[1722259839736,0.008,3370.0,3369.2,3.459]
[1722259839905,0.008,3370.0,3369.3,0.55]
[1722259840107,0.008,3370.0,3369.5,2.96775]
[1722259840418,0.008,3370.0,3369.9,7.43488]
[1722259840732,2.2662,3372.1,3370.3,2.96707]
[1722259840947,1.02721359,3372.0,3370.3,3.459]
[1722259841129,0.07414866,3372.0,3370.4,3.8629]
[1722259841289,0.07414866,3372.0,3370.4,0.8959]
[1722259841489,0.07414866,3372.0,3370.4,0.55]
[1722259841490,2.96569,3371.9,3370.4,0.55]
[1722259841691,0.07415657,3371.8,3370.4,6.426]
[1722259841901,0.07415657,3371.8,3370.4,3.459]
[1722259842130,2.2662,3372.1,3370.5,1.247611]
[1722259842353,2.2662,3372.1,3370.5,4.214501]
[1722259842354,0.07414979,3372.0,3370.5,4.214501]
[1722259842640,0.07414979,3372.0,3370.5,1.247611]
[1722259842803,2.2662,3372.1,3370.5,1.247611]
[1722259843005,2.2662,3372.1,3370.6,2.96677]
[1722259843229,0.07414556,3372.0,3370.7,1.6140371]
[1722259843710,0.07414556,3372.0,3370.7,4.5807671]
[1722259843918,0.07414556,3372.0,3370.7,1.6140371]
[1722259844524,4.95457094,3373.5,3370.7,1.6140371]
[1722259844525,1.53593712,3373.9,3371.9,2.96565]
[1722259844737,3.07181914,3375.1,3372.7,3.459]
[1722259844738,1.53593712,3374.7,3372.7,3.459]
[1722259844924,1.0266603,3373.8,3372.8,0.05927823]
[1722259845137,1.0266603,3373.8,3372.9,0.55]
[1722259845338,1.0266603,3373.8,3373.0,1.97186811]
[1722259845650,0.07410129,3373.7,3373.0,0.27748665]
[1722259845851,0.012,3374.0,3372.5,2.3102]
[1722259846032,0.012,3374.0,3372.6,0.55]
[1722259846246,0.012,3374.0,3372.7,0.582544]
[1722259846560,0.012,3374.0,3372.2,2.96533]
[1722259846561,0.012,3374.0,3371.9,2.2562]
[1722259846762,2.96403,3373.8,3372.2,0.55]
[1722259847056,0.0741143,3373.7,3372.2,0.55]
[1722259847237,0.0741143,3373.7,3371.9,2.2562]
[1722259847238,0.0741143,3373.7,3372.0,0.558]
[1722259847547,0.0741143,3373.7,3372.1,0.577986]
[1722259847754,2.96428,3373.5,3372.0,0.008]
[1722259847907,0.0741143,3373.7,3372.0,0.008]
[1722259847908,2.96474,3373.0,3372.0,0.008]
[1722259848111,0.07413829,3372.9,3372.0,0.008]
[1722259848722,3.07413829,3372.9,3372.0,0.008]
[1722259849055,6.03893829,3372.9,3372.0,0.008]
[1722259849351,2.3976,3372.8,3372.0,0.008]
[1722259849508,2.96515,3372.6,3372.0,0.008]
[1722259849713,3.07414738,3372.5,3372.0,0.008]
[1722259850140,0.07414738,3372.5,3372.0,0.008]
[1722259850346,1.53743385,3373.6,3372.0,0.008]
[1722259850347,2.4816,3373.6,3372.0,0.008]
[1722259850511,2.4816,3373.6,3372.0,2.97359]
[1722259850714,2.97592,3374.0,3372.1,0.05929568]
[1722259850915,0.012,3374.0,3372.2,0.53411857]
[1722259851217,0.08611816,3374.0,3372.3,0.05929452]
[1722259851514,0.08611816,3374.0,3372.2,0.53411857]
[1722259851515,2.96421,3373.6,3372.0,0.008]
[1722259851745,0.07412692,3373.5,3372.0,0.008]
[1722259852050,0.07412692,3373.5,3372.0,0.536214]
[1722259852051,3.07412692,3373.5,3372.0,0.536214]
[1722259852351,2.96445,3373.3,3372.0,0.008]
[1722259852552,3.03869332,3373.2,3372.0,0.008]
[1722259852855,2.96481,3372.9,3372.0,0.008]
[1722259853155,2.96481,3372.9,3370.9,5.41645]
[1722259853156,0.07414105,3372.8,3370.9,5.41645]
[1722259853365,0.07414105,3372.8,3370.9,2.4499]
[1722259853366,0.07414107,3372.7,3370.9,2.4499]
[1722259853921,0.07414107,3372.7,3371.0,0.05931691]
[1722259854151,0.07414107,3372.7,3371.1,0.54757069]
[1722259854322,0.07414107,3372.7,3371.2,0.05931689]
[1722259854676,2.96507,3372.6,3371.1,0.54757069]
[1722259854813,6.0393062,3372.5,3370.9,2.4499]
[1722259855144,2.96527,3372.4,3370.9,2.4499]
[1722259855343,3.07415037,3372.3,3370.9,2.4499]
[1722259855523,0.07415037,3372.2,3370.9,2.4499]
[1722259856768,3.03958037,3372.2,3370.9,2.4499]
[1722259857066,3.0,3372.1,3370.9,2.4499]
[1722259857361,0.07415109,3372.0,3370.9,2.4499]
[1722259857526,3.03975109,3372.0,3370.9,2.4499]
[1722259857854,3.0,3371.9,3370.3,2.353]
[1722259858016,0.07415619,3371.8,3370.4,0.55]
[1722259859258,0.07415622,3372.0,3370.4,0.55]
[1722259859620,4.26385622,3372.0,3370.3,2.353]
[1722259859820,4.26385622,3372.0,3369.7,2.4914]
[1722259859821,2.96628,3371.3,3369.7,2.4914]
[1722259860017,2.9664,3371.1,3369.7,2.4914]
[1722259860263,6.04067391,3371.0,3369.8,0.24914]
[1722259860446,2.96674,3370.7,3369.7,2.4914]
[1722259860650,2.96674,3370.7,3368.5,1.5]
[1722259860651,2.96698,3370.5,3368.9,2.3621]
[1722259860823,2.2764,3370.8,3368.9,2.59831]
[1722259860824,3.07419418,3370.4,3368.9,2.59831]
[1722259861335,1.53738141,3371.3,3368.9,2.59831]
[1722259861336,2.3603,3371.4,3369.1,1.5]
[1722259861540,2.96587,3371.7,3369.7,2.4]
[1722259861732,5.9658,3371.8,3369.9,2.96738]
[1722259861733,2.96577,3371.8,3369.9,2.96738]
[1722259861931,3.0,3371.6,3370.0,0.05933595]
[1722259862117,0.07416994,3371.5,3370.2,2.96718]
[1722259862321,5.3259,3372.0,3370.4,2.967]
[1722259862322,2.3603,3372.0,3370.4,2.967]
[1722259862521,2.96552,3372.1,3370.6,2.4767]
[1722259862753,2.96568,3371.9,3370.6,2.4767]
[1722259862967,2.4328,3372.5,3370.6,2.4767]
[1722259862968,3.03993202,3371.8,3370.6,2.4767]
[1722259863164,0.07416202,3371.7,3370.7,0.24767]
[1722259864153,0.07416202,3371.7,3369.6,2.2533]
[1722259864346,2.96603,3371.6,3369.8,3.51753]
[1722259864577,0.07416829,3371.5,3369.8,3.51753]
[1722259864846,2.96623,3371.3,3369.9,0.577083]
[1722259865046,6.04020829,3371.5,3369.6,2.2533]
[1722259865047,2.9665,3371.0,3370.0,0.008]
[1722259865253,2.9664,3371.1,3370.0,0.008]
[1722259865254,3.04076975,3370.9,3370.0,0.008]
[1722259865457,3.0,3371.4,3370.1,2.4649]
[1722259865658,0.07415985,3371.4,3370.1,2.4649]
[1722259866101,2.96636,3371.2,3370.1,2.4649]
[1722259866313,2.9665,3371.0,3370.0,0.008]
[1722259866448,0.0741784,3370.9,3370.0,0.008]
[1722259866955,3.0407584,3370.9,3370.0,0.008]
[1722259867156,2.96683,3370.6,3370.0,0.008]
[1722259867501,5.96692,3370.5,3370.0,0.008]
[1722259867650,2.96692,3370.5,3370.0,0.008]
[1722259867848,3.0,3370.8,3370.0,0.008]
[1722259868050,1.02760996,3370.7,3370.0,0.008]
[1722259868254,2.96668,3370.8,3370.0,0.008]
[1722259868499,3.0,3371.0,3370.0,0.008]
[1722259868713,1.02755158,3370.9,3370.0,0.008]
[1722259868875,2.96648,3371.0,3370.0,0.008]
[1722259868876,1.02755158,3370.8,3370.0,0.008]
[1722259869073,2.96666,3370.8,3370.0,0.008]
[1722259869280,4.02755158,3370.9,3370.0,0.008]
[1722259869281,3.0,3370.7,3370.0,0.008]
[1722259869496,5.96657,3370.9,3370.0,0.008]
[1722259869920,0.07417871,3370.8,3370.0,0.008]
[1722259870075,3.04092874,3370.7,3370.0,0.008]
[1722259870275,2.96699,3370.5,3370.0,0.008]
[1722259870475,4.1019407,3370.4,3370.0,0.008]
[1722259870679,0.61337272,3370.4,3370.0,0.008]
[1722259870910,2.96699,3370.5,3370.0,0.008]
[1722259870911,0.029785,3370.3,3370.0,0.008]
[1722259871117,2.96727,3370.1,3370.0,0.008]
[1722259871318,6.99212762,3370.1,3370.0,0.008]
[1722259872776,14.74339762,3370.1,3370.0,0.008]
[1722259872978,15.29364636,3370.1,3370.0,0.008]
[1722259873212,14.265595,3370.1,3370.0,0.008]
[1722259873376,21.3869211,3370.1,3370.0,0.008]
[1722259873583,20.6715511,3370.1,3370.0,0.008]
[1722259873797,14.5782811,3370.1,3370.0,0.008]
[1722259874327,17.5455511,3370.1,3370.0,0.008]
[1722259874701,14.5782811,3370.1,3370.0,0.008]
[1722259875402,14.57827471,3370.1,3370.0,0.008]
[1722259875605,17.54554471,3370.1,3370.0,0.008]